[Event "*** Titled Tuesday Blitz"]
[Site "Chess.com"]
[Date "2021.02.02"]
[Round "2"]
[White "olksuna"]
[Black "Hongjin"]
[Result "0-1"]
[WhiteElo "2692"]
[BlackElo "2503"]
[TimeControl "180+1"]
[EndTime "10:21:45 PST"]
[Termination "Hongjin won by resignation"]

1. e4 {[%clk 0:03:00.9]} 1... c5 {[%clk 0:02:59.4]} 2. Nf3 {[%clk 0:03:00.9]}
2... d6 {[%clk 0:02:59.8]} 3. d4 {[%clk 0:03:00.9]} 3... cxd4 {[%clk 0:03:00.7]}
4. Nxd4 {[%clk 0:03:01.7]} 4... Nf6 {[%clk 0:03:01.1]} 5. Nc3 {[%clk 0:03:02.4]}
5... a6 {[%clk 0:03:01.7]} 6. Be2 {[%clk 0:03:02.5]} 6... e5 {[%clk 0:03:00]} 7.
Nf3 {[%clk 0:03:02.5]} 7... Be7 {[%clk 0:03:00.4]} 8. Bg5 {[%clk 0:03:01.9]}
8... O-O {[%clk 0:03:00.2]} 9. O-O {[%clk 0:02:58.5]} 9... Be6 {[%clk
0:03:00.1]} 10. Bxf6 {[%clk 0:02:55.7]} 10... Bxf6 {[%clk 0:03:01]} 11. Nd5
{[%clk 0:02:56.3]} 11... Bxd5 {[%clk 0:02:44.3]} 12. Qxd5 {[%clk 0:02:55.2]}
12... Qc7 {[%clk 0:02:44.7]} 13. c3 {[%clk 0:02:53.9]} 13... Nd7 {[%clk
0:02:41.5]} 14. Rfd1 {[%clk 0:02:50]} 14... Be7 {[%clk 0:02:41.1]} 15. a4 {[%clk
0:02:39.5]} 15... Nf6 {[%clk 0:02:31.9]} 16. Qd3 {[%clk 0:02:35.1]} 16... Nh5
{[%clk 0:02:25.5]} 17. g3 {[%clk 0:02:29.9]} 17... Nf6 {[%clk 0:02:22.6]} 18.
Nh4 {[%clk 0:02:17.3]} 18... g6 {[%clk 0:02:18.7]} 19. Ng2 {[%clk 0:02:17.4]}
19... Qc6 {[%clk 0:02:10.2]} 20. Bf3 {[%clk 0:02:13]} 20... b5 {[%clk
0:02:02.7]} 21. a5 {[%clk 0:02:03.1]} 21... Rfd8 {[%clk 0:01:46.6]} 22. Ne3
{[%clk 0:02:02.7]} 22... Bf8 {[%clk 0:01:46.9]} 23. Kg2 {[%clk 0:01:59.5]} 23...
Rac8 {[%clk 0:01:42.4]} 24. h4 {[%clk 0:01:55.5]} 24... h5 {[%clk 0:01:29.4]}
25. Nc2 {[%clk 0:01:55.3]} 25... Qb7 {[%clk 0:01:17.2]} 26. Nb4 {[%clk
0:01:54.5]} 26... Rc4 {[%clk 0:01:14.7]} 27. Re1 {[%clk 0:01:45.4]} 27... Re8
{[%clk 0:01:09.2]} 28. Rad1 {[%clk 0:01:39.4]} 28... Ra8 {[%clk 0:01:01.6]} 29.
Qe3 {[%clk 0:01:21.2]} 29... Qc7 {[%clk 0:00:57.6]} 30. Ra1 {[%clk 0:01:09.1]}
30... Qb7 {[%clk 0:00:54.8]} 31. Qb6 {[%clk 0:00:54.3]} 31... Qc8 {[%clk
0:00:50.7]} 32. Rad1 {[%clk 0:00:39.2]} 32... Nd7 {[%clk 0:00:49.6]} 33. Qe3
{[%clk 0:00:36.6]} 33... Nf6 {[%clk 0:00:50]} 34. Qg5 {[%clk 0:00:32.2]} 34...
Be7 {[%clk 0:00:48.4]} 35. Qh6 {[%clk 0:00:25.3]} 35... Qc7 {[%clk 0:00:45.5]}
36. Ra1 {[%clk 0:00:24.6]} 36... Bf8 {[%clk 0:00:44.9]} 37. Qg5 {[%clk
0:00:22.3]} 37... Be7 {[%clk 0:00:45.2]} 38. Qd2 {[%clk 0:00:22]} 38... Qb7
{[%clk 0:00:44.1]} 39. Qd3 {[%clk 0:00:20.5]} 39... Rac8 {[%clk 0:00:42.4]} 40.
Qe3 {[%clk 0:00:17.3]} 40... Ra8 {[%clk 0:00:42.1]} 41. Qb6 {[%clk 0:00:17.1]}
41... Qc8 {[%clk 0:00:42.2]} 42. Qe3 {[%clk 0:00:13.6]} 42... Bf8 {[%clk
0:00:39.8]} 43. Kg1 {[%clk 0:00:13.6]} 43... Qc7 {[%clk 0:00:39.3]} 44. Qd3
{[%clk 0:00:13.3]} 44... Qb7 {[%clk 0:00:38]} 45. Rad1 {[%clk 0:00:12.3]} 45...
Be7 {[%clk 0:00:37.5]} 46. Ra1 {[%clk 0:00:09.3]} 46... Rac8 {[%clk 0:00:36.8]}
47. Bg2 {[%clk 0:00:10]} 47... Ra8 {[%clk 0:00:36.4]} 48. Kh1 {[%clk 0:00:10]}
48... Ng4 {[%clk 0:00:36.4]} 49. Qe2 {[%clk 0:00:09.7]} 49... Qa7 {[%clk
0:00:36.4]} 50. Rf1 {[%clk 0:00:09.8]} 50... Nf6 {[%clk 0:00:35.6]} 51. f4
{[%clk 0:00:08.5]} 51... Qb7 {[%clk 0:00:33.8]} 52. Rae1 {[%clk 0:00:07.4]}
52... Ng4 {[%clk 0:00:31.4]} 53. Nd5 {[%clk 0:00:06.3]} 53... Bd8 {[%clk
0:00:30.5]} 54. f5 {[%clk 0:00:06.5]} 54... g5 {[%clk 0:00:26.5]} 55. Bh3 {[%clk
0:00:05.8]} 55... Rac8 {[%clk 0:00:18.4]} 56. Bxg4 {[%clk 0:00:05.5]} 56... hxg4
{[%clk 0:00:19.3]} 57. Qxg4 {[%clk 0:00:05.8]} 57... Qxd5 {[%clk 0:00:19.6]} 58.
hxg5 {[%clk 0:00:04.7]} 58... Qd2 {[%clk 0:00:17.2]} 59. Rd1 {[%clk 0:00:04.9]}
59... Qxg5 {[%clk 0:00:16.6]} 60. Qxg5+ {[%clk 0:00:05.3]} 60... Bxg5 {[%clk
0:00:17.5]} 61. Rxd6 {[%clk 0:00:05.9]} 61... Rxe4 {[%clk 0:00:17.9]} 62. Rxa6
{[%clk 0:00:05.4]} 62... b4 {[%clk 0:00:18.5]} 63. Rf2 {[%clk 0:00:02.8]} 63...
bxc3 {[%clk 0:00:18.7]} 64. bxc3 {[%clk 0:00:03.7]} 64... Rxc3 {[%clk
0:00:18.8]} 65. Kg2 {[%clk 0:00:04.6]} 65... Ree3 {[%clk 0:00:18.9]} 66. f6
{[%clk 0:00:04.7]} 66... Rxg3+ {[%clk 0:00:18.7]} 67. Kf1 {[%clk 0:00:05.3]}
67... Rcf3 {[%clk 0:00:18.4]} 68. Ra8+ {[%clk 0:00:04.3]} 68... Kh7 {[%clk
0:00:18.3]} 69. Ra7 {[%clk 0:00:05.2]} 69... Kg6 {[%clk 0:00:17.9]} 70. a6
{[%clk 0:00:05.7]} 70... Rxf2+ {[%clk 0:00:18.2]} 71. Kxf2 {[%clk 0:00:06.6]}
71... Ra3 {[%clk 0:00:18.9]} 72. Ra8 {[%clk 0:00:05.7]} 72... Bxf6 {[%clk
0:00:19.3]} 73. a7 {[%clk 0:00:06.3]} 73... Bg7 {[%clk 0:00:19.7]} 74. Ke2
{[%clk 0:00:06.1]} 74... e4 {[%clk 0:00:20]} 75. Kd2 {[%clk 0:00:06.7]} 75...
Rd3+ {[%clk 0:00:19.5]} 76. Ke2 {[%clk 0:00:07.6]} 76... Ra3 {[%clk 0:00:20.1]}
77. Kd2 {[%clk 0:00:08.1]} 77... Kh7 {[%clk 0:00:20.5]} 78. Ke2 {[%clk
0:00:08.2]} 78... Bd4 {[%clk 0:00:20.4]} 79. Kf1 {[%clk 0:00:06.5]} 79... Rxa7
{[%clk 0:00:20.2]} 80. Re8 {[%clk 0:00:05.8]} 80... f5 {[%clk 0:00:19.8]} 81.
Kg2 {[%clk 0:00:06.2]} 81... Kg6 {[%clk 0:00:20.3]} 82. Kg3 {[%clk 0:00:06.4]}
82... Bf6 {[%clk 0:00:20.6]} 83. Kf4 {[%clk 0:00:05.9]} 83... Bg5+ {[%clk
0:00:21]} 84. Ke5 {[%clk 0:00:05.7]} 84... Re7+ {[%clk 0:00:21.2]} 0-1

[Event "*** Titled Tuesday Blitz"]
[Site "Chess.com"]
[Date "2021.02.02"]
[Round "2"]
[White "bsnsun"]
[Black "Maghalashvili"]
[Result "0-1"]
[WhiteElo "2480"]
[BlackElo "2692"]
[TimeControl "180+1"]
[EndTime "10:21:52 PST"]
[Termination "Maghalashvili won by checkmate"]

1. d4 {[%clk 0:02:59.5]} 1... Nf6 {[%clk 0:02:59.5]} 2. c4 {[%clk 0:02:58.4]}
2... c5 {[%clk 0:02:59.9]} 3. d5 {[%clk 0:02:58.1]} 3... g6 {[%clk 0:03:00.4]}
4. Nf3 {[%clk 0:02:57.9]} 4... Bg7 {[%clk 0:03:01]} 5. Nc3 {[%clk 0:02:58.2]}
5... O-O {[%clk 0:03:01.9]} 6. g3 {[%clk 0:02:58.5]} 6... e6 {[%clk 0:03:02.1]}
7. Bg2 {[%clk 0:02:58.9]} 7... exd5 {[%clk 0:03:03]} 8. cxd5 {[%clk 0:02:59.2]}
8... d6 {[%clk 0:03:03.9]} 9. O-O {[%clk 0:02:59.5]} 9... Re8 {[%clk 0:03:04.2]}
10. Nd2 {[%clk 0:02:59.3]} 10... Na6 {[%clk 0:03:02.7]} 11. Nc4 {[%clk
0:02:58.3]} 11... Nc7 {[%clk 0:02:56.8]} 12. a4 {[%clk 0:02:56.9]} 12... b6
{[%clk 0:02:55.2]} 13. Bf4 {[%clk 0:02:56.1]} 13... Bf8 {[%clk 0:02:54.1]} 14.
Qd2 {[%clk 0:02:49.6]} 14... Ba6 {[%clk 0:02:52.4]} 15. b3 {[%clk 0:02:48.1]}
15... Nh5 {[%clk 0:02:31.1]} 16. Bg5 {[%clk 0:02:46.6]} 16... Be7 {[%clk
0:02:25.3]} 17. Bxe7 {[%clk 0:02:44.9]} 17... Qxe7 {[%clk 0:02:26.2]} 18. Rfe1
{[%clk 0:02:44.1]} 18... Nf6 {[%clk 0:02:12.4]} 19. h3 {[%clk 0:02:34.8]} 19...
Nd7 {[%clk 0:02:06.5]} 20. e4 {[%clk 0:02:23.5]} 20... Ne5 {[%clk 0:01:57.3]}
21. Nxe5 {[%clk 0:02:18.2]} 21... Qxe5 {[%clk 0:01:58.2]} 22. Rad1 {[%clk
0:02:18.1]} 22... b5 {[%clk 0:01:49.4]} 23. axb5 {[%clk 0:02:08.8]} 23... Nxb5
{[%clk 0:01:49]} 24. Nxb5 {[%clk 0:02:06.9]} 24... Bxb5 {[%clk 0:01:49.9]} 25.
f4 {[%clk 0:02:07.2]} 25... Qe7 {[%clk 0:01:48.8]} 26. e5 {[%clk 0:02:05.4]}
26... a5 {[%clk 0:01:44.3]} 27. Ra1 {[%clk 0:02:02.1]} 27... Qc7 {[%clk
0:01:19.9]} 28. exd6 {[%clk 0:01:55.3]} 28... Qb6 {[%clk 0:01:06.1]} 29. Kh2
{[%clk 0:01:48.6]} 29... Red8 {[%clk 0:00:59.8]} 30. Re7 {[%clk 0:01:21.4]}
30... Qxd6 {[%clk 0:00:58.3]} 31. Rae1 {[%clk 0:01:14.1]} 31... c4 {[%clk
0:00:53.5]} 32. bxc4 {[%clk 0:01:07.1]} 32... Bxc4 {[%clk 0:00:52.2]} 33. Qd4
{[%clk 0:01:07.4]} 33... Bb3 {[%clk 0:00:44.8]} 34. R1e6 {[%clk 0:00:55.6]}
34... Qb4 {[%clk 0:00:33.3]} 35. Qf6 {[%clk 0:00:51.8]} 35... Rf8 {[%clk
0:00:33.1]} 36. Rb6 {[%clk 0:00:47.1]} 36... Qc4 {[%clk 0:00:20.2]} 37. Rbb7
{[%clk 0:00:45.8]} 37... Ra6 {[%clk 0:00:20.3]} 38. d6 {[%clk 0:00:36.8]} 38...
Qc2 {[%clk 0:00:18]} 39. Qd4 {[%clk 0:00:27.4]} 39... Rd8 {[%clk 0:00:08.9]} 40.
d7 {[%clk 0:00:25.6]} 40... Re6 {[%clk 0:00:06]} 41. Rxe6 {[%clk 0:00:18.2]}
41... Bxe6 {[%clk 0:00:06.9]} 42. Qb6 {[%clk 0:00:17.1]} 42... Rxd7 {[%clk
0:00:05.3]} 43. Rxd7 {[%clk 0:00:17.7]} 43... Bxd7 {[%clk 0:00:05.7]} 44. Qd8+
{[%clk 0:00:18.6]} 44... Kg7 {[%clk 0:00:06]} 45. Qxd7 {[%clk 0:00:18.8]} 45...
a4 {[%clk 0:00:06.5]} 46. Qd4+ {[%clk 0:00:19.1]} 46... Kg8 {[%clk 0:00:06]} 47.
Qb4 {[%clk 0:00:19.2]} 47... Qa2 {[%clk 0:00:05.3]} 48. h4 {[%clk 0:00:15.2]}
48... a3 {[%clk 0:00:05.4]} 49. Kh3 {[%clk 0:00:15.5]} 49... Qe6+ {[%clk
0:00:05.6]} 50. g4 {[%clk 0:00:10.5]} 50... Qe3+ {[%clk 0:00:04.5]} 51. Kh2
{[%clk 0:00:11.2]} 51... a2 {[%clk 0:00:04.4]} 52. Qb8+ {[%clk 0:00:10.8]} 52...
Kg7 {[%clk 0:00:04.6]} 53. Qb2+ {[%clk 0:00:11.4]} 53... Kh6 {[%clk 0:00:04.6]}
54. g5+ {[%clk 0:00:11]} 54... Kh5 {[%clk 0:00:04.7]} 55. Qxa2 {[%clk
0:00:06.7]} 55... Qxf4+ {[%clk 0:00:04.7]} 56. Kg1 {[%clk 0:00:07.1]} 56... Qd4+
{[%clk 0:00:04.9]} 57. Kf1 {[%clk 0:00:05.7]} 57... Qf4+ {[%clk 0:00:03.5]} 58.
Kg1 {[%clk 0:00:04.4]} 58... Kxh4 {[%clk 0:00:03.7]} 59. Qe2 {[%clk 0:00:03.1]}
59... Kxg5 {[%clk 0:00:03.7]} 60. Qe1 {[%clk 0:00:03.3]} 60... f6 {[%clk
0:00:03.9]} 61. Qe7 {[%clk 0:00:03.6]} 61... Qd4+ {[%clk 0:00:04.1]} 62. Kh1
{[%clk 0:00:03.4]} 62... h5 {[%clk 0:00:05]} 63. Kh2 {[%clk 0:00:03.6]} 63...
Qh4+ {[%clk 0:00:05.2]} 64. Kg1 {[%clk 0:00:03.6]} 64... Qd4+ {[%clk 0:00:06.1]}
65. Kh1 {[%clk 0:00:03.7]} 65... h4 {[%clk 0:00:07]} 66. Kh2 {[%clk 0:00:04]}
66... Qf4+ {[%clk 0:00:07]} 67. Kh1 {[%clk 0:00:03.9]} 67... Qg3 {[%clk
0:00:07.4]} 68. Qe6 {[%clk 0:00:01.3]} 68... f5 {[%clk 0:00:06.9]} 69. Qd5
{[%clk 0:00:01.7]} 69... Qe1+ {[%clk 0:00:06.2]} 70. Kh2 {[%clk 0:00:01.6]}
70... Qg3+ {[%clk 0:00:07.1]} 71. Kh1 {[%clk 0:00:02.2]} 71... h3 {[%clk
0:00:08]} 72. Qd8+ {[%clk 0:00:02.4]} 72... Kg4 {[%clk 0:00:07.7]} 73. Qd4+
{[%clk 0:00:02.1]} 73... Kg5 {[%clk 0:00:07.5]} 74. Qd8+ {[%clk 0:00:02.3]}
74... Kh5 {[%clk 0:00:07.7]} 75. Qh8+ {[%clk 0:00:02.4]} 75... Kg4 {[%clk
0:00:08.1]} 76. Qd4+ {[%clk 0:00:03]} 76... f4 {[%clk 0:00:08.5]} 77. Qd7+
{[%clk 0:00:02.5]} 77... Kh4 {[%clk 0:00:08.4]} 78. Qh7+ {[%clk 0:00:01.7]}
78... Kg5 {[%clk 0:00:08.5]} 79. Qd7 {[%clk 0:00:02.3]} 79... Qxg2# {[%clk
0:00:07.9]} 0-1

[Event "*** Titled Tuesday Blitz"]
[Site "Chess.com"]
[Date "2021.02.02"]
[Round "2"]
[White "vugarrasulov"]
[Black "tteshan"]
[Result "1-0"]
[WhiteElo "2738"]
[BlackElo "2343"]
[TimeControl "180+1"]
[EndTime "10:21:54 PST"]
[Termination "vugarrasulov won by checkmate"]

1. e4 {[%clk 0:03:00.9]} 1... c5 {[%clk 0:02:57.4]} 2. Nf3 {[%clk 0:03:01.3]}
2... d6 {[%clk 0:02:56.9]} 3. d4 {[%clk 0:03:01.7]} 3... cxd4 {[%clk 0:02:56.9]}
4. Nxd4 {[%clk 0:03:02.6]} 4... Nf6 {[%clk 0:02:57.3]} 5. Nc3 {[%clk 0:03:03.2]}
5... Nc6 {[%clk 0:02:57.2]} 6. Be3 {[%clk 0:03:03.7]} 6... e6 {[%clk 0:02:56]}
7. Bc4 {[%clk 0:03:03.2]} 7... a6 {[%clk 0:02:55.6]} 8. Qe2 {[%clk 0:03:03]}
8... Qc7 {[%clk 0:02:54.5]} 9. O-O-O {[%clk 0:03:03]} 9... b5 {[%clk 0:02:54.1]}
10. Bb3 {[%clk 0:02:57.9]} 10... b4 {[%clk 0:02:46.4]} 11. Na4 {[%clk
0:02:57.5]} 11... Nxe4 {[%clk 0:02:34.4]} 12. Rhe1 {[%clk 0:02:45.6]} 12... Bb7
{[%clk 0:02:31.9]} 13. Qh5 {[%clk 0:02:42.1]} 13... g6 {[%clk 0:02:28.3]} 14.
Qh3 {[%clk 0:02:38.1]} 14... Bg7 {[%clk 0:02:15.7]} 15. Nb6 {[%clk 0:02:18.6]}
15... Nxd4 {[%clk 0:02:10]} 16. Bxd4 {[%clk 0:02:12.6]} 16... Bxd4 {[%clk
0:01:47.2]} 17. Nxa8 {[%clk 0:02:12.7]} 17... Qc5 {[%clk 0:01:45.9]} 18. Nc7+
{[%clk 0:02:09.6]} 18... Kd7 {[%clk 0:01:40]} 19. Nxe6 {[%clk 0:02:07.9]} 19...
fxe6 {[%clk 0:01:39.3]} 20. Qxe6+ {[%clk 0:02:08.8]} 20... Kc7 {[%clk
0:01:38.1]} 21. Rxe4 {[%clk 0:02:09.2]} 21... Bxe4 {[%clk 0:01:35.8]} 22. Qxe4
{[%clk 0:02:10.1]} 22... Bxf2 {[%clk 0:01:36.2]} 23. Qe7+ {[%clk 0:02:10.2]}
23... Kb8 {[%clk 0:01:26.2]} 24. Kb1 {[%clk 0:02:08.6]} 24... Bd4 {[%clk
0:01:23.9]} 25. Rf1 {[%clk 0:02:02.1]} 25... Rc8 {[%clk 0:01:18.9]} 26. Rf7
{[%clk 0:01:57.2]} 26... Rc7 {[%clk 0:01:18.1]} 27. Qd8+ {[%clk 0:01:56.4]}
27... Rc8 {[%clk 0:01:13.7]} 28. Qe7 {[%clk 0:01:53.8]} 28... Rc7 {[%clk
0:01:12.8]} 29. Qe8+ {[%clk 0:01:49.9]} 29... Rc8 {[%clk 0:01:11.9]} 30. Qe4
{[%clk 0:01:50]} 30... Rc7 {[%clk 0:01:10.5]} 31. Rf8+ {[%clk 0:01:50.2]} 31...
Rc8 {[%clk 0:01:09.9]} 32. Rxc8+ {[%clk 0:01:50.4]} 32... Kxc8 {[%clk
0:01:08.2]} 33. Qe8+ {[%clk 0:01:47.7]} 33... Kb7 {[%clk 0:01:08.4]} 34. Qe7+
{[%clk 0:01:46.1]} 34... Kb6 {[%clk 0:01:06]} 35. Qd8+ {[%clk 0:01:45.7]} 35...
Qc7 {[%clk 0:01:05.1]} 36. Qh4 {[%clk 0:01:43.5]} 36... Qg7 {[%clk 0:00:57.3]}
37. a4 {[%clk 0:01:28.5]} 37... bxa3 {[%clk 0:00:56.4]} 38. bxa3 {[%clk
0:01:29.4]} 38... Be5 {[%clk 0:00:54.9]} 39. Ka2 {[%clk 0:01:27.4]} 39... Qc7
{[%clk 0:00:53.3]} 40. Qb4+ {[%clk 0:01:20.2]} 40... Ka7 {[%clk 0:00:53.1]} 41.
Bc4 {[%clk 0:01:18.3]} 41... Bd4 {[%clk 0:00:47]} 42. Bd3 {[%clk 0:01:12.4]}
42... Be5 {[%clk 0:00:45.7]} 43. Kb3 {[%clk 0:01:06]} 43... Qf7+ {[%clk
0:00:41.3]} 44. Bc4 {[%clk 0:00:59.3]} 44... Qc7 {[%clk 0:00:35]} 45. g3 {[%clk
0:00:54.8]} 45... h5 {[%clk 0:00:27.6]} 46. Bd3 {[%clk 0:00:49.4]} 46... g5
{[%clk 0:00:25.2]} 47. a4 {[%clk 0:00:37.6]} 47... Qf7+ {[%clk 0:00:21.8]} 48.
Ka3 {[%clk 0:00:33.8]} 48... Qc7 {[%clk 0:00:17.1]} 49. Ka2 {[%clk 0:00:33.4]}
49... Qc6 {[%clk 0:00:14.6]} 50. a5 {[%clk 0:00:29.7]} 50... Bc3 {[%clk
0:00:13.4]} 51. Qb3 {[%clk 0:00:23.2]} 51... Bxa5 {[%clk 0:00:12.2]} 52. Qf7+
{[%clk 0:00:23.7]} 52... Bc7 {[%clk 0:00:11.6]} 53. Kb2 {[%clk 0:00:19.7]} 53...
Qb6+ {[%clk 0:00:10.4]} 54. Kc3 {[%clk 0:00:20.3]} 54... Qc5+ {[%clk 0:00:09.8]}
55. Kd2 {[%clk 0:00:20.9]} 55... Kb8 {[%clk 0:00:09.8]} 56. Qe8+ {[%clk
0:00:20.5]} 56... Kb7 {[%clk 0:00:09.6]} 57. Qf7 {[%clk 0:00:19.7]} 57... Kb8
{[%clk 0:00:09.7]} 58. Qf8+ {[%clk 0:00:19]} 58... Kb7 {[%clk 0:00:09.8]} 59.
Be4+ {[%clk 0:00:19.4]} 59... Kb6 {[%clk 0:00:09.4]} 60. Qf7 {[%clk 0:00:17.2]}
60... Qd4+ {[%clk 0:00:09.6]} 61. Bd3 {[%clk 0:00:17.8]} 61... Kb7 {[%clk
0:00:09.3]} 62. Qxh5 {[%clk 0:00:16.8]} 62... Ba5+ {[%clk 0:00:09.4]} 63. Ke2
{[%clk 0:00:16.6]} 63... Qg1 {[%clk 0:00:07.4]} 64. Qf3+ {[%clk 0:00:16.2]}
64... Kc7 {[%clk 0:00:07]} 65. Qf7+ {[%clk 0:00:15.8]} 65... Kb6 {[%clk
0:00:07.3]} 66. Qb3+ {[%clk 0:00:15.9]} 66... Kc7 {[%clk 0:00:07.7]} 67. Qf7+
{[%clk 0:00:16.1]} 67... Kb6 {[%clk 0:00:07.5]} 68. Kf3 {[%clk 0:00:14.4]} 68...
Be1 {[%clk 0:00:05.6]} 69. Kg4 {[%clk 0:00:13.7]} 69... Qxh2 {[%clk 0:00:05.4]}
70. Qf3 {[%clk 0:00:12.4]} 70... Qd2 {[%clk 0:00:03.3]} 71. Qd5 {[%clk
0:00:12.2]} 71... Qb4+ {[%clk 0:00:02.6]} 72. Kh5 {[%clk 0:00:11.5]} 72... Bxg3
{[%clk 0:00:02.7]} 73. Qa8 {[%clk 0:00:11.4]} 73... Be5 {[%clk 0:00:02.3]} 74.
Qxa6+ {[%clk 0:00:11]} 74... Kc5 {[%clk 0:00:03.2]} 75. Qc8+ {[%clk 0:00:11]}
75... Kd4 {[%clk 0:00:03.6]} 76. Qg4+ {[%clk 0:00:11.6]} 76... Kc3 {[%clk
0:00:04]} 77. Qe2 {[%clk 0:00:12.2]} 77... Qd4 {[%clk 0:00:04.1]} 78. Qe1+
{[%clk 0:00:12]} 78... Kb2 {[%clk 0:00:04.6]} 79. Qe2 {[%clk 0:00:12.2]} 79...
g4 {[%clk 0:00:04.7]} 80. c4+ {[%clk 0:00:11.1]} 80... Ka3 {[%clk 0:00:04.2]}
81. c5 {[%clk 0:00:08.1]} 81... dxc5 {[%clk 0:00:03.8]} 82. Bc4 {[%clk
0:00:08.7]} 82... g3 {[%clk 0:00:03.2]} 83. Qa2+ {[%clk 0:00:08.9]} 83... Kb4
{[%clk 0:00:02]} 84. Qb3+ {[%clk 0:00:09.8]} 84... Ka5 {[%clk 0:00:02]} 85. Qb5#
{[%clk 0:00:10.7]} 1-0

[Event "*** Titled Tuesday Blitz"]
[Site "Chess.com"]
[Date "2021.02.02"]
[Round "2"]
[White "VALPARAISO37"]
[Black "LamaChampetre"]
[Result "1-0"]
[WhiteElo "2439"]
[BlackElo "2210"]
[TimeControl "180+1"]
[EndTime "10:22:08 PST"]
[Termination "VALPARAISO37 won on time"]

1. d4 {[%clk 0:03:00.9]} 1... Nf6 {[%clk 0:02:59.4]} 2. c4 {[%clk 0:03:01]} 2...
g6 {[%clk 0:02:59.9]} 3. Nc3 {[%clk 0:03:01.1]} 3... d5 {[%clk 0:03:00]} 4. Bf4
{[%clk 0:03:00.4]} 4... Bg7 {[%clk 0:02:58.5]} 5. Nf3 {[%clk 0:03:00.5]} 5...
O-O {[%clk 0:02:58.1]} 6. e3 {[%clk 0:03:00.3]} 6... c5 {[%clk 0:02:58.3]} 7.
dxc5 {[%clk 0:02:59.9]} 7... Qa5 {[%clk 0:02:58.1]} 8. Rc1 {[%clk 0:02:58.5]}
8... dxc4 {[%clk 0:02:57.8]} 9. Bxc4 {[%clk 0:02:56.8]} 9... Qxc5 {[%clk
0:02:53.2]} 10. Bb3 {[%clk 0:02:55.1]} 10... Nc6 {[%clk 0:02:51.8]} 11. O-O
{[%clk 0:02:54.4]} 11... Qa5 {[%clk 0:02:43.7]} 12. h3 {[%clk 0:02:54]} 12...
Rd8 {[%clk 0:02:38.8]} 13. Qe2 {[%clk 0:02:53.8]} 13... Bf5 {[%clk 0:02:37.8]}
14. e4 {[%clk 0:02:53.8]} 14... Bc8 {[%clk 0:02:32.5]} 15. e5 {[%clk 0:02:51.2]}
15... Nh5 {[%clk 0:02:30.7]} 16. Bh2 {[%clk 0:02:49.7]} 16... Bf5 {[%clk
0:02:24]} 17. Rfd1 {[%clk 0:02:42.3]} 17... Qb4 {[%clk 0:01:48.5]} 18. g4 {[%clk
0:02:37.9]} 18... Bxg4 {[%clk 0:01:45.5]} 19. hxg4 {[%clk 0:02:38.2]} 19...
Qxg4+ {[%clk 0:01:44.8]} 20. Kh1 {[%clk 0:02:38.6]} 20... Bh6 {[%clk 0:01:21.4]}
21. Rg1 {[%clk 0:02:34.7]} 21... Qh3 {[%clk 0:01:10.7]} 22. Rce1 {[%clk
0:02:16.4]} 22... Bf4 {[%clk 0:01:07]} 23. Qe4 {[%clk 0:02:09.3]} 23... Nd4
{[%clk 0:00:45.6]} 24. Bxf7+ {[%clk 0:01:54.2]} 24... Kh8 {[%clk 0:00:25.8]} 25.
Rg2 {[%clk 0:00:57.2]} 25... Nxf3 {[%clk 0:00:24.8]} 26. Re3 {[%clk 0:00:54.2]}
26... Bxh2 {[%clk 0:00:15.5]} 27. Qxf3 {[%clk 0:00:50.8]} 27... Qxf3 {[%clk
0:00:08.2]} 28. Rxf3 {[%clk 0:00:49]} 28... Bxe5 {[%clk 0:00:08.5]} 29. Nd5
{[%clk 0:00:47.1]} 29... Nf6 {[%clk 0:00:05.9]} 30. Nxe7 {[%clk 0:00:45.9]}
30... Rd1+ {[%clk 0:00:05.2]} 31. Rg1 {[%clk 0:00:45.8]} 31... Rd7 {[%clk
0:00:05.1]} 32. Nxg6+ {[%clk 0:00:41.3]} 32... hxg6 {[%clk 0:00:06]} 33. Bxg6
{[%clk 0:00:41.1]} 33... Rg7 {[%clk 0:00:05.1]} 34. Rh3+ {[%clk 0:00:40.7]}
34... Kg8 {[%clk 0:00:05.3]} 35. Rh6 {[%clk 0:00:36.3]} 35... Bd6 {[%clk
0:00:05.1]} 36. Rd1 {[%clk 0:00:30.1]} 36... Rd8 {[%clk 0:00:04.3]} 37. f4
{[%clk 0:00:27.5]} 37... Ng4 {[%clk 0:00:04.5]} 38. Rxd6 {[%clk 0:00:24.3]}
38... Nf2+ {[%clk 0:00:04.3]} 39. Kh2 {[%clk 0:00:21]} 39... Rxd6 {[%clk
0:00:05.2]} 40. Bf7+ {[%clk 0:00:19.9]} 40... Kxf7 {[%clk 0:00:04.9]} 41. Rxd6
{[%clk 0:00:20.6]} 41... Ng4+ {[%clk 0:00:05.3]} 42. Kh3 {[%clk 0:00:21]} 42...
Nf6 {[%clk 0:00:05.8]} 43. Rd8 {[%clk 0:00:18.9]} 43... Kg6 {[%clk 0:00:06.6]}
44. Ra8 {[%clk 0:00:16.1]} 44... Rh7+ {[%clk 0:00:07.5]} 45. Kg3 {[%clk
0:00:15.2]} 45... a6 {[%clk 0:00:08.4]} 46. Rc8 {[%clk 0:00:10.1]} 46... Kf5
{[%clk 0:00:08.7]} 47. Rc5+ {[%clk 0:00:10]} 47... Ke6 {[%clk 0:00:08.5]} 48.
Re5+ {[%clk 0:00:09.5]} 48... Kf7 {[%clk 0:00:08.3]} 49. f5 {[%clk 0:00:09.1]}
49... Rg7+ {[%clk 0:00:09.2]} 50. Kf4 {[%clk 0:00:08.9]} 50... Rg4+ {[%clk
0:00:08.8]} 51. Kf3 {[%clk 0:00:09.1]} 51... Rc4 {[%clk 0:00:08.7]} 52. b3
{[%clk 0:00:03.9]} 52... Rc3+ {[%clk 0:00:08.5]} 53. Kf4 {[%clk 0:00:03.7]}
53... Rc2 {[%clk 0:00:08.5]} 54. Ra5 {[%clk 0:00:02.4]} 54... Nh5+ {[%clk
0:00:08.5]} 55. Kg5 {[%clk 0:00:02.6]} 55... Nf6 {[%clk 0:00:09.1]} 56. Re5
{[%clk 0:00:02.6]} 56... Rg2+ {[%clk 0:00:09.4]} 57. Kf4 {[%clk 0:00:02.8]}
57... Rxa2 {[%clk 0:00:09.1]} 58. Kf3 {[%clk 0:00:03.4]} 58... Rb2 {[%clk
0:00:08.4]} 59. Re3 {[%clk 0:00:04]} 59... b5 {[%clk 0:00:08.5]} 60. Rd3 {[%clk
0:00:04.1]} 60... a5 {[%clk 0:00:08.5]} 61. Rc3 {[%clk 0:00:04.5]} 61... a4
{[%clk 0:00:08.4]} 62. Rc7+ {[%clk 0:00:04.6]} 62... Ke8 {[%clk 0:00:08]} 63.
bxa4 {[%clk 0:00:05.2]} 63... Rb3+ {[%clk 0:00:08.1]} 64. Ke2 {[%clk 0:00:03.1]}
64... bxa4 {[%clk 0:00:09]} 65. Ra7 {[%clk 0:00:03.1]} 65... a3 {[%clk
0:00:08.6]} 66. Kd2 {[%clk 0:00:03.6]} 66... Nd5 {[%clk 0:00:08.2]} 67. Kc2
{[%clk 0:00:03.9]} 67... Nb4+ {[%clk 0:00:08.5]} 68. Kd2 {[%clk 0:00:04.2]}
68... Rb2+ {[%clk 0:00:08.3]} 69. Kc3 {[%clk 0:00:04.4]} 69... a2 {[%clk
0:00:09.2]} 70. Kxb2 {[%clk 0:00:04]} 70... Nd5 {[%clk 0:00:05.8]} 71. Kxa2
{[%clk 0:00:03.8]} 71... Ne3 {[%clk 0:00:05.1]} 72. f6 {[%clk 0:00:03.9]} 72...
Nd5 {[%clk 0:00:05.3]} 73. f7+ {[%clk 0:00:03.2]} 73... Kf8 {[%clk 0:00:05.4]}
74. Kb3 {[%clk 0:00:03.2]} 74... Ne7 {[%clk 0:00:06.3]} 75. Kc4 {[%clk
0:00:02.9]} 75... Kxf7 {[%clk 0:00:07.2]} 76. Kc5 {[%clk 0:00:03.6]} 76... Ke6
{[%clk 0:00:07.6]} 77. Ra6+ {[%clk 0:00:04.1]} 77... Kf7 {[%clk 0:00:07.4]} 78.
Kd6 {[%clk 0:00:04.2]} 78... Nf5+ {[%clk 0:00:07.8]} 79. Ke5 {[%clk 0:00:04.5]}
79... Ne7 {[%clk 0:00:07.2]} 80. Ra7 {[%clk 0:00:04.5]} 80... Kf8 {[%clk
0:00:05.6]} 81. Ke6 {[%clk 0:00:04.7]} 81... Nc6 {[%clk 0:00:03.2]} 82. Ra8+
{[%clk 0:00:04]} 82... Kg7 {[%clk 0:00:02.7]} 83. Rc8 {[%clk 0:00:03.5]} 1-0